bitfinex/quotes_BTCUSD_20241116
["timestamp","ask_amount","ask_price","bid_price","bid_amount"]
[1731758571183,0.24180055,91126.0,91125.0,0.0008585]
[1731758571402,0.24180055,91126.0,91125.0,0.01182838]
[1731758572108,0.219457,91134.0,91125.0,0.01182838]
[1731758572110,0.219461,91132.0,91125.0,0.01182838]
[1731758572382,0.023,91127.0,91126.0,0.01096988]
[1731758572826,0.132736,91127.0,91126.0,0.01439779]
[1731758573060,0.132736,91127.0,91126.0,0.02810854]
[1731758574760,0.132736,91127.0,91126.0,0.02468063]
[1731758574959,0.132736,91127.0,91126.0,0.01096988]
[1731758576584,0.24179855,91127.0,91126.0,0.01096988]
[1731758577061,0.132738,91126.0,91125.0,0.0008585]
[1731758577288,0.24180055,91126.0,91125.0,0.0008585]
[1731758579848,0.24180055,91126.0,91125.0,0.01182806]
[1731758580082,0.24180055,91126.0,91125.0,0.0008585]
[1731758580294,0.24180055,91126.0,91125.0,0.01182787]
[1731758582117,0.24180055,91126.0,91125.0,0.01868383]
[1731758582333,0.24180055,91126.0,91125.0,0.0008585]
[1731758582553,0.24180055,91126.0,91125.0,0.01868398]
[1731758582770,0.219439,91142.0,91125.0,0.01868398]
[1731758582771,0.023,91128.0,91125.0,0.01868398]
[1731758582980,0.023,91128.0,91126.0,0.01782548]
[1731758583203,0.023,91128.0,91125.0,0.0008585]
[1731758583204,0.023,91128.0,91127.0,0.01782548]
[1731758583424,0.023,91132.0,91127.0,0.01782548]
[1731758583644,0.023,91130.0,91128.0,0.01782548]
[1731758583897,0.023,91130.0,91125.0,0.0008585]
[1731758583898,0.13206255,91130.0,91129.0,0.01782548]
[1731758584407,0.105,91157.0,91131.0,0.109731]
[1731758584408,0.109724,91138.0,91131.0,0.109731]
[1731758584623,0.109724,91138.0,91125.0,0.0008585]
[1731758584624,0.109727,91135.0,91132.0,0.02125307]
[1731758584857,0.21878655,91138.0,91133.0,0.01782548]
[1731758585090,0.21878655,91138.0,91134.0,0.01782548]
[1731758585325,0.109726,91136.0,91135.0,0.01782548]
[1731758585560,0.132726,91136.0,91135.0,0.01782548]
[1731758586456,0.132726,91136.0,91135.0,0.01782306]
[1731758587099,0.132726,91136.0,91135.0,0.00685502]
[1731758587337,0.132726,91136.0,91135.0,0.01782306]
[1731758588025,0.132726,91136.0,91135.0,0.00685502]
[1731758589582,0.023,91136.0,91125.0,0.0008585]
[1731758589820,0.242454,91135.0,91126.0,0.12070516]
[1731758590062,0.109732,91131.0,91127.0,0.00685508]
[1731758590294,0.109732,91131.0,91128.0,0.00685508]
[1731758590539,0.023,91135.0,91126.0,0.01096816]
[1731758590540,0.109733,91130.0,91129.0,0.00685508]
[1731758590757,0.109732,91131.0,91129.0,0.00685508]
[1731758591006,0.24179455,91131.0,91130.0,0.00685508]
[1731758591261,0.132732,91131.0,91130.0,0.00685508]
[1731758591494,0.1247403,91132.0,91125.0,0.0008585]
[1731758591495,0.132738,91126.0,91125.0,0.0008585]
[1731758594293,0.24180055,91126.0,91125.0,0.0008585]
[1731758596087,0.13206255,91126.0,91125.0,0.00771466]
[1731758596301,0.24180055,91126.0,91125.0,0.00771466]
[1731758596524,0.24180055,91126.0,91125.0,0.0008585]
[1731758596771,0.24180055,91126.0,91125.0,0.00771447]
[1731758597226,0.24180055,91126.0,91125.0,0.01868402]
[1731758597639,0.24180055,91126.0,91125.0,0.01868431]
[1731758598273,0.24180055,91126.0,91125.0,0.0186842]
[1731758602263,0.24180055,91126.0,91125.0,0.00771454]
[1731758603656,0.24180055,91126.0,91125.0,0.00771479]
[1731758604554,0.24180055,91126.0,91125.0,0.01868462]
[1731758605233,0.24180055,91126.0,91125.0,0.01868467]
[1731758606916,0.24180055,91126.0,91125.0,0.0008585]
[1731758607131,0.24180055,91126.0,91125.0,0.01868426]
[1731758608293,0.24180055,91126.0,91125.0,0.00771456]
[1731758611215,0.24180055,91126.0,91125.0,0.0008585]
[1731758611662,0.24180055,91126.0,91125.0,0.00771501]
[1731758611874,0.28704573,91126.0,91125.0,0.00771501]
[1731758612801,0.28704573,91126.0,91125.0,0.0008585]
[1731758616305,0.33574573,91126.0,91125.0,0.0008585]
[1731758617174,0.34597762,91126.0,91125.0,0.0008585]
[1731758617810,0.42417762,91126.0,91125.0,0.0008585]
[1731758618674,0.75689853,91126.0,91125.0,0.0008585]
[1731758618885,0.53417762,91126.0,91125.0,0.0008585]
[1731758619089,0.68114853,91126.0,91125.0,0.0008585]
[1731758619345,0.53417762,91126.0,91125.0,0.0008585]
[1731758619774,0.63237256,91126.0,91125.0,0.0008585]
[1731758620193,0.53417762,91126.0,91125.0,0.0008585]
[1731758620414,0.63236294,91126.0,91125.0,0.0008585]
[1731758620643,0.53417762,91126.0,91125.0,0.0008585]
[1731758621329,0.63235513,91126.0,91125.0,0.0008585]
[1731758621547,0.63235812,91126.0,91125.0,0.0008585]
[1731758622218,0.53418061,91126.0,91125.0,0.0008585]
[1731758622426,0.47548061,91126.0,91125.0,0.0008585]
[1731758622651,0.48048061,91126.0,91125.0,0.0008585]
[1731758623762,0.47548061,91126.0,91125.0,0.0008585]
[1731758623974,0.29728061,91126.0,91125.0,0.0008585]
[1731758624184,0.28704573,91126.0,91125.0,0.0008585]
[1731758624869,0.24180055,91126.0,91125.0,0.0008585]
[1731758626656,0.21945,91137.0,91125.0,0.0008585]
[1731758626657,0.0017168,91135.0,91125.0,0.0008585]
[1731758626862,0.16431423,91132.0,91125.0,0.0008585]
[1731758627077,0.21879555,91131.0,91125.0,0.0008585]
[1731758627520,0.109733,91130.0,91126.0,0.01782657]
[1731758627727,0.21879555,91130.0,91127.0,0.00685673]
[1731758627905,0.21879555,91130.0,91125.0,0.0008585]
[1731758627906,0.023,91129.0,91128.0,0.01782645]
[1731758628166,0.132734,91129.0,91128.0,0.01782645]
[1731758629070,0.023,91129.0,91128.0,0.01782645]
[1731758629500,0.023,91134.0,91131.0,0.109731]
[1731758629797,0.023,91134.0,91125.0,0.0008585]
[1731758629798,0.023,91134.0,91132.0,0.01096972]
[1731758630008,0.023,91134.0,91132.0,0.00685549]
[1731758630240,0.023,91134.0,91133.0,0.0109685]
[1731758630448,0.023,91134.0,91133.0,0.03153442]
[1731758631973,0.023,91134.0,91133.0,0.14126342]
[1731758633063,0.0017168,91135.0,91133.0,0.03153442]
[1731758633274,0.0017168,91135.0,91130.0,0.22476675]
[1731758633275,0.0247168,91135.0,91134.0,0.18816242]
[1731758633546,0.0017168,91135.0,91134.0,0.18816242]
[1731758633750,0.0017168,91135.0,91134.0,0.26456242]
[1731758634418,0.0017168,91135.0,91134.0,0.36292779]
[1731758634632,0.0017168,91135.0,91134.0,0.15483442]
[1731758634842,0.0017168,91135.0,91134.0,0.26456242]
[1731758634843,0.0247168,91135.0,91134.0,0.26456242]
[1731758635292,0.0247168,91135.0,91134.0,0.26798957]
[1731758636984,0.0247168,91135.0,91134.0,0.08186157]
[1731758637195,0.0247168,91135.0,91134.0,0.03496157]
[1731758637438,0.0247168,91135.0,91134.0,0.04025299]
[1731758637679,0.0247168,91135.0,91134.0,0.03496157]
[1731758637891,0.0247168,91135.0,91134.0,0.14468957]
[1731758638330,0.0247168,91135.0,91134.0,0.14126242]
[1731758638771,0.0247168,91135.0,91131.0,0.219464]
[1731758638772,0.023,91134.0,91131.0,0.219464]
[1731758638979,0.023,91134.0,91133.0,0.109729]
[1731758640077,0.023,91134.0,91133.0,0.234129]
[1731758640313,0.023,91134.0,91133.0,0.237556]
[1731758642317,0.0017168,91135.0,91134.0,0.119728]
[1731758642529,0.0017168,91135.0,91134.0,0.47793085]
[1731758642822,0.0017168,91135.0,91134.0,0.48684051]
[1731758643247,0.16431423,91150.0,91149.0,0.10971]
[1731758643463,0.219344,91181.0,91150.0,0.0479]
[1731758643669,0.219344,91181.0,91166.0,0.10969]
[1731758643884,0.109678,91176.0,91166.0,0.10969]
[1731758644095,0.219344,91181.0,91166.0,0.10969]
[1731758644096,0.27398923,91178.0,91166.0,0.10969]
[1731758644315,0.0017166,91167.0,91166.0,0.10969]
[1731758644556,0.0017166,91167.0,91166.0,0.15759]
[1731758644779,0.0017166,91167.0,91166.0,0.16307287]
[1731758645454,0.0017166,91167.0,91166.0,0.15759]
[1731758645668,0.0247166,91167.0,91166.0,0.16307133]
[1731758645935,0.0247166,91167.0,91166.0,0.16307134]
[1731758646140,0.0247166,91167.0,91166.0,0.16855268]
[1731758646608,0.0247166,91167.0,91166.0,0.16307134]
[1731758646841,0.0017166,91167.0,91166.0,0.16307134]
[1731758648214,0.0247166,91167.0,91166.0,0.16307134]
[1731758648428,0.0247166,91167.0,91166.0,0.17677455]
[1731758648872,0.0247166,91167.0,91166.0,0.18773704]
[1731758649105,0.0247166,91167.0,91166.0,0.19273704]
[1731758649541,0.0247166,91167.0,91166.0,0.30679959]
[1731758649542,0.0017166,91167.0,91166.0,0.30679959]
[1731758649552,0.0017166,91167.0,91166.0,0.42758925]
[1731758649795,0.16431423,91189.0,91166.0,0.42758925]
[1731758649796,0.16431423,91189.0,91186.0,0.109665]
[1731758650031,0.16431423,91189.0,91188.0,0.109663]
[1731758650269,0.27396423,91199.0,91188.0,0.109663]
[1731758650270,0.27396423,91199.0,91190.0,0.10966]
[1731758650271,0.16431423,91199.0,91190.0,0.10966]
[1731758650523,0.16431423,91199.0,91188.0,0.0246657]
[1731758650524,0.16431423,91199.0,91193.0,0.109657]
[1731758650754,0.023,91198.0,91195.0,0.00526263]
[1731758650980,0.023,91198.0,91191.0,0.109658]
[1731758651203,0.16431423,91199.0,91194.0,0.109655]
[1731758651204,0.023,91199.0,91194.0,0.109655]
[1731758651435,0.023,91203.0,91180.0,0.04517581]
[1731758651689,0.0017174,91218.0,91190.0,0.1247403]
[1731758651690,0.16431423,91208.0,91190.0,0.1247403]
[1731758651963,0.16431423,91208.0,91184.0,0.27337678]
[1731758651964,0.16431423,91208.0,91207.0,0.10964]
[1731758652194,0.0017174,91216.0,91197.0,0.1247403]
[1731758652195,0.16431423,91207.0,91206.0,0.109641]
[1731758652426,0.0017174,91216.0,91206.0,0.25078915]
[1731758652655,0.0017174,91216.0,91202.0,0.0765]
[1731758652656,0.0017174,91216.0,91207.0,0.03150715]
[1731758652874,0.0017174,91216.0,91202.0,0.0765]
[1731758652875,0.16431423,91213.0,91212.0,0.109634]
[1731758653126,0.0017174,91216.0,91208.0,0.25078339]
[1731758653127,0.0017174,91216.0,91209.0,0.219276]
[1731758653387,0.0017174,91216.0,91215.0,0.109631]
[1731758653666,0.0017174,91216.0,91215.0,0.03150439]
[1731758654607,0.0247174,91216.0,91215.0,0.03150439]
[1731758654845,0.0247174,91216.0,91215.0,0.14113539]
[1731758655083,0.2192,91241.0,91215.0,0.038353]
[1731758655084,0.2945,91241.0,91215.0,0.038353]
[1731758655322,0.0017164,91246.0,91229.0,0.00039616]
[1731758655323,0.16431423,91230.0,91229.0,0.00039616]
[1731758655560,0.0008576,91243.0,91229.0,0.038353]
[1731758655818,0.0008576,91243.0,91239.0,0.109602]
[1731758656047,0.0008576,91243.0,91239.0,0.14110639]
[1731758656279,0.0008576,91243.0,91242.0,0.109598]
[1731758656528,0.0008576,91243.0,91242.0,0.14110239]
[1731758656766,0.0008576,91243.0,91242.0,0.19110239]
[1731758656995,0.0008576,91243.0,91242.0,0.159598]
[1731758657269,0.0008576,91243.0,91242.0,0.19109342]
[1731758657544,0.0008576,91243.0,91242.0,0.24652437]
[1731758658007,0.0008576,91243.0,91242.0,0.24652605]
[1731758658239,0.0008576,91243.0,91242.0,0.2116429]
[1731758660516,0.023,91245.0,91242.0,0.1020449]
[1731758660748,0.0017164,91246.0,91242.0,0.1020449]
[1731758660749,0.023,91243.0,91242.0,0.05]
[1731758661004,0.023,91243.0,91242.0,0.08149201]
[1731758661005,0.132597,91243.0,91242.0,0.08149201]
[1731758661479,0.109597,91243.0,91242.0,0.10203028]
[1731758661726,0.023,91243.0,91242.0,0.08149201]
[1731758661962,0.023,91243.0,91242.0,0.10203028]
[1731758662185,0.023,91245.0,91242.0,0.10203028]
[1731758662408,0.023,91245.0,91243.0,0.05203028]
[1731758662640,0.023,91245.0,91244.0,0.05203028]
[1731758662873,0.132595,91245.0,91244.0,0.05203028]
[1731758663100,0.023,91245.0,91244.0,0.05203028]
[1731758663347,0.132595,91245.0,91243.0,0.00767797]
[1731758663583,0.023,91245.0,91243.0,0.00767797]
[1731758663799,0.023,91245.0,91244.0,0.01]
[1731758664483,0.132595,91245.0,91244.0,0.01]
[1731758664992,0.0017164,91246.0,91244.0,0.01]
[1731758665258,0.1113104,91246.0,91244.0,0.01]
[1731758665472,0.0017164,91246.0,91244.0,0.01]
[1731758666125,0.16431423,91253.0,91244.0,0.01]
[1731758666580,0.10959,91249.0,91244.0,0.01]
[1731758666812,0.38348523,91253.0,91244.0,0.01]
[1731758666813,0.109594,91246.0,91244.0,0.01]
[1731758667254,0.023,91252.0,91244.0,0.01]
[1731758667509,0.224143,91265.0,91232.0,0.219219]
[1731758667510,0.0008575,91264.0,91232.0,0.054]
[1731758667738,0.0008575,91264.0,91233.0,0.10906255]
[1731758667739,0.023,91256.0,91233.0,0.10906255]
[1731758667963,0.16431423,91258.0,91234.0,0.219216]
[1731758667964,0.023,91257.0,91234.0,0.219216]
[1731758668194,0.023,91257.0,91249.0,0.109589]
[1731758668428,0.023,91257.0,91234.0,0.224216]
[1731758668429,0.023,91257.0,91238.0,0.005]
[1731758668667,0.0017168,91259.0,91258.0,0.109579]
[1731758668911,0.0017168,91259.0,91258.0,0.10937]
[1731758669172,0.0008575,91264.0,91258.0,0.03667933]
[1731758669622,0.0008575,91264.0,91253.0,0.21917]
[1731758669859,0.0008575,91264.0,91249.0,0.049]
[1731758669861,0.1104295,91264.0,91249.0,0.049]
[1731758670103,0.0008575,91264.0,91250.0,0.219178]
[1731758670326,0.219154,91260.0,91246.0,0.109593]
[1731758670563,0.0008575,91264.0,91245.0,0.21919]
[1731758670782,0.0008575,91264.0,91248.0,0.05]
[1731758671026,0.023,91260.0,91248.0,0.05]
[1731758671261,0.109582,91256.0,91248.0,0.159591]
[1731758671476,0.109582,91256.0,91242.0,0.11406255]
[1731758671477,0.0008575,91264.0,91242.0,0.11906255]
[1731758671478,0.01368059,91245.0,91242.0,0.11906255]
[1731758671707,0.01664084,91245.0,91244.0,0.109596]
[1731758671922,0.023,91263.0,91255.0,0.109582]
[1731758672132,0.1104295,91264.0,91242.0,0.67059446]
[1731758672133,0.16431423,91256.0,91249.0,0.0801751]
[1731758672369,0.0008575,91264.0,91242.0,0.31284587]
[1731758672370,0.0008575,91264.0,91248.0,0.14536739]
[1731758672687,0.0008575,91264.0,91252.0,0.219173]
[1731758672876,0.0008575,91264.0,91262.0,0.109573]
[1731758673086,0.0008575,91264.0,91247.0,0.005]
[1731758673087,0.0008575,91264.0,91263.0,0.109573]
[1731758673328,0.0008575,91264.0,91263.0,0.14106189]
[1731758673762,0.0008575,91264.0,91263.0,0.12111867]
[1731758674497,0.0008575,91264.0,91263.0,0.47885299]
[1731758674732,0.0008575,91264.0,91263.0,0.6241997]
[1731758674980,0.0008575,91264.0,91263.0,0.59264063]
[1731758675253,0.0008575,91264.0,91263.0,0.51396227]
[1731758675463,0.0008575,91264.0,91263.0,0.71064569]
[1731758675676,0.025,91266.0,91265.0,0.109571]
[1731758675898,0.16431423,91284.0,91273.0,0.109561]
[1731758676116,0.16431423,91284.0,91276.0,0.109557]
[1731758676339,0.16431423,91284.0,91273.0,0.0177957]
[1731758676340,0.16431423,91284.0,91283.0,0.24206221]
[1731758676578,0.16431423,91284.0,91283.0,0.0177957]
[1731758676579,0.109548,91284.0,91283.0,0.0177957]
[1731758677096,0.0811,91289.0,91283.0,0.0177957]
[1731758677308,0.0811,91289.0,91286.0,0.14525106]
[1731758677545,0.0811,91289.0,91278.0,0.1247403]
[1731758677546,0.0811,91296.0,91287.0,0.0177957]
[1731758677785,0.0811,91296.0,91288.0,0.0177957]
[1731758677997,0.0811,91296.0,91285.0,0.14525106]
[1731758677998,0.0811,91296.0,91289.0,0.0177957]
[1731758678213,0.0811,91296.0,91285.0,0.14525106]
[1731758678214,0.300169,91296.0,91285.0,0.14525106]
[1731758678437,0.300169,91296.0,91255.0,0.42943019]
[1731758678438,0.0811,91296.0,91287.0,0.14525106]
[1731758678659,0.0811,91296.0,91285.0,0.14525106]
[1731758678660,0.190634,91296.0,91285.0,0.14525106]
[1731758678886,0.109535,91295.0,91288.0,0.01779351]
[1731758679117,0.109536,91294.0,91289.0,0.00684363]
[1731758679377,0.0811,91296.0,91290.0,0.01779344]
[1731758679604,0.0811,91296.0,91286.0,0.14525106]
[1731758679605,0.0811,91296.0,91291.0,0.15622097]
[1731758679841,0.219024,91315.0,91282.0,0.2191]
[1731758679842,0.04767399,91300.0,91292.0,0.14101767]
[1731758680079,0.1272,91306.0,91294.0,0.109535]
[1731758680080,0.236722,91306.0,91294.0,0.109535]
[1731758680297,0.236722,91306.0,91287.0,0.41277245]
[1731758680298,0.109526,91303.0,91295.0,0.03148067]
[1731758680546,0.109526,91302.0,91296.0,0.03148067]
[1731758680768,0.219061,91299.0,91291.0,0.14525106]
[1731758680991,0.1272,91306.0,91292.0,0.17672741]
[1731758680992,0.109537,91293.0,91292.0,0.17672741]
[1731758681212,0.109537,91293.0,91292.0,0.01779098]
[1731758682192,0.11456913,91293.0,91292.0,0.01779098]
[1731758682432,0.11456913,91293.0,91292.0,0.01779396]
[1731758682668,0.00503213,91293.0,91292.0,0.12733196]
[1731758683103,0.16431423,91303.0,91292.0,0.01779396]
[1731758683345,0.27384023,91303.0,91292.0,0.109538]
[1731758683564,0.27384023,91303.0,91294.0,0.00423858]
[1731758683565,0.00544697,91302.0,91294.0,0.00423858]
[1731758683770,0.00544697,91302.0,91288.0,0.09692325]
[1731758683771,0.109528,91301.0,91299.0,0.00423858]
[1731758683985,0.11497495,91301.0,91300.0,0.01779313]
[1731758685297,0.11497495,91301.0,91300.0,0.11471638]
[1731758685507,0.11497495,91301.0,91300.0,0.01779313]
[1731758685739,0.2240375,91301.0,91300.0,0.01779313]
[1731758685981,0.2731375,91301.0,91300.0,0.01779313]
[1731758686197,0.3508375,91301.0,91300.0,0.01779313]
[1731758686404,0.3508375,91301.0,91300.0,0.00684351]
[1731758686856,0.3558375,91301.0,91300.0,0.00684351]
[1731758687301,0.109544,91287.0,91286.0,0.0970603]
[1731758687519,0.109545,91286.0,91285.0,0.0970603]
[1731758687738,0.109545,91286.0,91285.0,0.14525106]
[1731758687949,0.109545,91286.0,91285.0,0.00684424]
[1731758687950,0.11526882,91286.0,91285.0,0.00684424]
[1731758688294,0.19296882,91286.0,91285.0,0.01779521]
[1731758688412,0.08342382,91286.0,91285.0,0.01779521]
[1731758689484,0.08342382,91286.0,91285.0,0.01779484]
[1731758689739,0.08342382,91286.0,91284.0,0.14525106]
[1731758689982,0.109542,91289.0,91284.0,0.14525106]
[1731758689983,0.109542,91289.0,91285.0,0.03410002]
[1731758690194,0.296777,91292.0,91287.0,0.09726154]
[1731758690195,0.0777,91292.0,91287.0,0.09726154]
[1731758690422,0.219063,91298.0,91288.0,0.01779472]
[1731758690639,0.219063,91298.0,91286.0,0.00815294]
[1731758690640,0.109538,91293.0,91289.0,0.1232092]
[1731758690857,0.219063,91298.0,91290.0,0.02594807]
[1731758691090,0.219063,91298.0,91287.0,0.09726154]
[1731758691091,0.109538,91292.0,91291.0,0.02594807]
[1731758692416,0.109538,91292.0,91291.0,0.01499748]
[1731758692627,0.29630055,91292.0,91291.0,0.01499748]
[1731758693055,0.29630055,91292.0,91291.0,0.01499753]
[1731758693318,0.187238,91292.0,91291.0,0.02594822]
[1731758693533,0.29630055,91292.0,91291.0,0.02594822]
[1731758693968,0.29630055,91292.0,91291.0,0.01779486]
[1731758695517,0.34880055,91292.0,91291.0,0.01779486]
[1731758696285,0.109542,91289.0,91288.0,5.0]
[1731758696544,0.109542,91289.0,91288.0,5.12353303]
[1731758696545,0.21860455,91289.0,91288.0,5.12353303]
[1731758696977,0.21860455,91289.0,91288.0,5.02596242]
[1731758698287,0.21860455,91289.0,91288.0,5.01501116]
[1731758698520,0.21860455,91289.0,91288.0,5.00684454]
[1731758700104,0.21860455,91289.0,91288.0,5.00684478]
[1731758701224,0.21860455,91289.0,91288.0,5.01779631]
[1731758701439,0.21860455,91289.0,91288.0,5.01779618]
[1731758701878,0.21860455,91289.0,91288.0,5.01779613]
[1731758702095,0.21860455,91289.0,91288.0,5.0]
[1731758702317,0.21860455,91289.0,91288.0,5.12354299]
[1731758702542,0.21860455,91289.0,91288.0,5.02597223]
[1731758703734,0.21860455,91289.0,91288.0,5.02597671]
[1731758703968,0.21860455,91289.0,91288.0,5.01779545]
[1731758704195,0.21860455,91289.0,91288.0,5.02597672]
[1731758704419,0.21860455,91289.0,91288.0,5.01779545]
[1731758704849,0.21860455,91289.0,91288.0,5.01779558]
[1731758705298,0.21860455,91289.0,91288.0,5.01865158]
[1731758705518,0.21860455,91289.0,91288.0,4.77275478]
[1731758705963,0.21860455,91289.0,91288.0,4.78093579]
[1731758706187,0.10906255,91289.0,91288.0,4.77275478]
[1731758706402,0.21860455,91289.0,91288.0,4.79804667]
[1731758707263,0.10906255,91289.0,91288.0,4.79804625]
[1731758707527,0.005,91297.0,91288.0,4.79804625]
[1731758707528,0.109538,91293.0,91288.0,4.79804625]
[1731758707740,0.21860055,91293.0,91289.0,0.04308696]
[1731758707967,0.00565173,91292.0,91290.0,0.04308696]
[1731758708187,0.10906255,91293.0,91291.0,0.03490516]
[1731758708405,0.21859955,91293.0,91292.0,0.03490516]
[1731758708615,0.10906255,91293.0,91292.0,0.03490516]
[1731758708891,0.10906255,91293.0,91292.0,0.03148309]
[1731758709102,0.10906255,91293.0,91288.0,4.74818127]
[1731758709318,0.10906255,91293.0,91292.0,0.0136883]
[1731758709528,0.10906255,91293.0,91292.0,0.03148309]
[1731758710427,0.109535,91295.0,91292.0,0.03148309]
[1731758710659,0.109535,91295.0,91288.0,4.74818127]
[1731758710660,0.10906255,91294.0,91293.0,0.03148309]
[1731758710900,0.21859855,91294.0,91293.0,0.03148309]
[1731758711161,0.10906255,91294.0,91293.0,0.03148309]
[1731758711655,0.21859855,91294.0,91293.0,0.03148309]
[1731758712781,0.21859855,91294.0,91288.0,4.74818127]
[1731758713037,0.21859855,91294.0,91293.0,0.01779458]
[1731758713280,0.21859855,91294.0,91288.0,4.74818127]
[1731758713281,0.109537,91293.0,91288.0,4.74818127]
[1731758713517,0.109537,91293.0,91289.0,0.01779485]
[1731758713518,0.219074,91293.0,91289.0,0.01779485]
[1731758713733,0.109537,91293.0,91290.0,0.01779485]
[1731758713965,0.109537,91293.0,91291.0,0.01779485]
[1731758714201,0.109537,91293.0,91292.0,0.01779485]
[1731758714456,0.26821228,91298.0,91292.0,0.01779485]
[1731758714457,0.04414928,91298.0,91292.0,0.01779485]
[1731758714696,0.04414928,91298.0,91288.0,4.74818127]
[1731758714697,0.109524,91304.0,91295.0,0.109534]
[1731758714927,0.109524,91304.0,91293.0,0.01779485]
[1731758714928,0.16602943,91308.0,91296.0,0.12732785]
[1731758714929,0.00566019,91297.0,91296.0,0.12732785]
[1731758715168,0.16602943,91308.0,91296.0,0.03148181]
[1731758715402,0.16602943,91308.0,91298.0,0.10953]
[1731758715403,0.109521,91307.0,91298.0,0.10953]
[1731758715640,0.109521,91307.0,91299.0,0.00547447]
[1731758715877,0.109522,91306.0,91300.0,0.04136397]
[1731758716094,0.109522,91306.0,91300.0,0.03695628]
[1731758716309,0.16602943,91308.0,91300.0,0.03695628]
[1731758716310,0.00737226,91301.0,91300.0,0.03695628]
[1731758716488,0.001712,91301.0,91300.0,0.03695628]
[1731758717102,0.001712,91301.0,91300.0,0.03695106]
[1731758718131,0.001712,91301.0,91300.0,0.04135531]
[1731758718132,0.111239,91301.0,91300.0,0.04135531]
[1731758718311,0.22030155,91301.0,91300.0,0.03695106]
[1731758718522,0.10953,91299.0,91294.0,0.00440338]
[1731758718726,0.10953,91299.0,91294.0,0.1024854]
[1731758719080,0.10953,91299.0,91288.0,5.05388831]
[1731758719081,0.10953,91299.0,91297.0,0.00440338]
[1731758719223,0.10953,91299.0,91298.0,0.03695334]
[1731758719838,0.30089255,91299.0,91298.0,0.03695334]
[1731758720059,0.109533,91297.0,91294.0,0.09808202]
[1731758720419,0.109533,91297.0,91295.0,0.03695341]
[1731758720628,0.109533,91296.0,91295.0,0.05474579]
[1731758720841,0.109533,91296.0,91295.0,0.04584961]
[1731758721047,0.109533,91296.0,91295.0,0.04037507]
[1731758722492,0.21859555,91296.0,91295.0,0.04037507]
[1731758722927,0.21859555,91296.0,91295.0,0.03490049]
[1731758723176,0.24159555,91296.0,91295.0,0.03490049]
[1731758723656,0.24159555,91296.0,91288.0,3.000856]
[1731758723657,0.21907,91295.0,91288.0,3.09893802]
[1731758723896,0.328611,91293.0,91288.0,3.09893802]
[1731758724129,0.109541,91290.0,91289.0,0.03695715]
[1731758724357,0.109541,91290.0,91289.0,0.04037896]
[1731758724831,0.10906255,91292.0,91289.0,0.13846146]
[1731758725064,0.10906255,91292.0,91288.0,3.000856]
[1731758725065,0.109541,91290.0,91288.0,3.000856]
[1731758725287,0.109541,91290.0,91289.0,0.04037889]
[1731758725513,0.16431423,91298.0,91289.0,0.04037889]
[1731758725514,0.023,91298.0,91289.0,0.04037889]
[1731758725725,0.023,91298.0,91288.0,3.110399]
[1731758725726,0.10906255,91297.0,91290.0,0.13846091]
[1731758725951,0.10906255,91297.0,91288.0,3.000856]
[1731758725952,0.10906255,91297.0,91291.0,0.04037889]
[1731758726159,0.109536,91294.0,91292.0,0.04037889]
[1731758726365,0.109536,91294.0,91293.0,0.04037889]
[1731758726662,0.36633885,91294.0,91293.0,0.04037889]
[1731758726883,0.36633885,91294.0,91293.0,0.03490379]
[1731758726884,1.04563885,91294.0,91293.0,0.03490379]
[1731758727089,1.04563885,91294.0,91288.0,3.000856]
[1731758727090,0.223342,91289.0,91288.0,2.99724641]
[1731758727341,0.33240455,91289.0,91288.0,2.99724641]
[1731758727580,0.33810239,91289.0,91288.0,2.99724641]
[1731758727791,0.33810239,91289.0,91288.0,1.49734641]
[1731758727998,0.33810239,91289.0,91285.0,0.000856]
[1731758727999,0.223345,91286.0,91285.0,0.000856]
[1731758728212,0.45714785,91286.0,91285.0,0.000856]
[1731758728437,0.46284563,91286.0,91285.0,0.000856]
[1731758728654,0.56284563,91286.0,91285.0,0.000856]
[1731758729300,0.43810533,91286.0,91285.0,0.000856]
[1731758730421,0.43810533,91286.0,91252.0,0.0008564]
[1731758730423,0.213374,91262.0,91252.0,0.0008564]
[1731758730645,0.32243655,91262.0,91252.0,0.0008564]
[1731758730861,0.109585,91253.0,91252.0,0.0008564]
[1731758731115,0.21864755,91253.0,91252.0,0.0008564]
[1731758731340,0.21967398,91253.0,91252.0,0.0008564]
[1731758732052,0.21690122,91253.0,91252.0,0.0008564]
[1731758734030,0.00277276,91253.0,91252.0,0.0008564]
[1731758734338,0.219151,91261.0,91252.0,0.0008564]
[1731758734339,0.109581,91257.0,91252.0,0.0008564]
[1731758734537,0.00272652,91253.0,91252.0,0.0008564]
[1731758734761,0.32821355,91261.0,91252.0,0.0008564]
[1731758734762,0.10906255,91261.0,91252.0,0.0008564]
[1731758734994,0.10906255,91261.0,91254.0,0.0495]
[1731758735218,0.00272665,91260.0,91254.0,0.0495]
[1731758736299,0.109578,91259.0,91254.0,0.0495]
[1731758736739,0.00273636,91258.0,91254.0,0.0495]
[1731758736966,0.00273636,91258.0,91255.0,0.01095386]
[1731758737173,0.42781795,91267.0,91256.0,0.01095386]
[1731758737174,0.219139,91266.0,91256.0,0.01095386]
[1731758737385,0.00273635,91257.0,91254.0,0.0495]
[1731758737588,0.10958,91258.0,91255.0,0.01095371]
[1731758737825,0.00273634,91256.0,91255.0,0.01095371]
[1731758738090,0.10958,91258.0,91255.0,0.01095371]
[1731758738091,0.10958,91258.0,91255.0,0.02464614]
[1731758738299,0.10958,91258.0,91254.0,0.0495]
[1731758738497,0.10906255,91266.0,91255.0,0.02464603]
[1731758738498,0.109582,91256.0,91255.0,0.02464603]
[1731758738766,0.21864455,91256.0,91255.0,0.02464603]
[1731758739196,0.22138089,91256.0,91255.0,0.02122339]
[1731758739609,0.22138089,91256.0,91255.0,0.01780019]
[1731758739862,0.22138089,91256.0,91255.0,0.02122351]
[1731758740101,0.22138089,91256.0,91255.0,0.01780019]
[1731758741632,0.22138089,91256.0,91255.0,0.02122349]
[1731758742749,0.22138089,91256.0,91255.0,0.0068464]
[1731758742976,0.22138089,91256.0,91253.0,0.0008564]
[1731758742977,0.109584,91254.0,91253.0,0.0008564]
[1731758743199,0.21864655,91254.0,91253.0,0.02208173]
[1731758743422,0.22138287,91254.0,91253.0,0.01865829]
[1731758743868,0.24438287,91254.0,91253.0,0.02208174]
[1731758744091,0.24438287,91254.0,91253.0,0.01865829]
[1731758746763,0.37958287,91254.0,91253.0,0.01865829]
[1731758746972,0.37958287,91254.0,91253.0,0.00770328]